[Event "Chinese League Div-A Rapid 2022"]
[Site "Fuling,Chongqing"]
[Date "2022.09.18"]
[Round "10.14"]
[White "Guo, Qi"]
[Black "Chen, Yining"]
[Result "1-0"]
[ECO "D32"]
[WhiteElo "2406"]
[BlackElo "1745"]
[Annotator "ChessBase"]
[PlyCount "61"]
[EventDate "2022.09.07"]
[EventType "team-tourn"]
[EventCountry "CHN"]
[SourceTitle "playchess.com"]
[Source "ChessBase"]
[SourceQuality "1"]
[TimeControl "1500+10"]

1. d4 {[%emt 0:00:02]} d5 {[%emt 0:00:02]} 2. c4 {[%emt 0:00:02]} e6 {[%emt 0:00:03]} 3. Nc3 {[%emt 0:00:02]} c5 {[%emt 0:00:07]} 4. cxd5 {[%emt 0:00:09]} exd5 {[%emt 0:00:02]} 5. Nf3 {[%emt 0:00:03]} Nc6 {[%emt 0:00:02]} 6. Bg5 {[%emt 0:02:03]} Be7 {[%emt 0:01:45]} 7. Bxe7 {[%emt 0:00:10]} Ngxe7 {[%emt 0:00:02]} 8. dxc5 {[%emt 0:03:07]} Qa5 {[%emt 0:01:57]} 9. e3 {[%emt 0:00:10]} Qxc5 {[%emt 0:00:57]} 10. Be2 {[%emt 0:00:04]} O-O {[%emt 0:00:32]} 11. O-O {[%emt 0:00:03]} Bg4 {[%emt 0:00:11]} 12. Rc1 {[%emt 0:00:06]} Qd6 {[%emt 0:00:55]} 13. Qa4 {[%emt 0:01:37]} Bxf3 {[%emt 0:00:43]} 14. Bxf3 {[%emt 0:00:06]} Rfd8 {[%emt 0:01:39]} 15. Rfd1 {[%emt 0:00:10]} Qe5 {[%emt 0:00:14]} 16. Qb5 {[%emt 0:01:10]} a6 {[%emt 0:04:45]} 17. Qxb7 {[%emt 0:00:28]} Rdb8 {[%emt 0:01:10]} 18. Qd7 {[%emt 0:00:03]} Qe6 {[%emt 0:02:59]} 19. Qxe6 {[%emt 0:01:23]} fxe6 {[%emt 0:00:03]} 20. b3 {[%emt 0:00:05]} Rd8 {[%emt 0:00:22]} 21. Bg4 {[%emt 0:01:10]} Kf7 {[%emt 0:01:53]} 22. Na4 {[%emt 0:00:02]} Rd6 {[%emt 0:00:25]} 23. Nc5 {[%emt 0:02:07]} a5 {[%emt 0:02:24]} 24. Ne4 {[%emt 0:00:14]} Rdd8 {[%emt 0:00:42]} 25. Ng5+ {[%emt 0:00:02]} Kf6 {[%emt 0:00:14]} 26. Nxe6 {[%emt 0:00:07]} Rd6 {[%emt 0:00:17]} 27. Nc5 {[%emt 0:00:50]} Kf7 {[%emt 0:01:20]} 28. Bf3 {[%emt 0:00:49]} Ne5 {[%emt 0:00:14]} 29. Be2 {[%emt 0:00:14]} Rc8 {[%emt 0:00:26]} 30. Nd3 {[%emt 0:00:50]} Nxd3 {[%emt 0:01:35]} 31. Bxd3 {[%emt 0:00:24]} 1-0

[Event "Chinese League Div-A Rapid 2022"]
[Site "Fuling,Chongqing"]
[Date "2022.09.18"]
[Round "10.15"]
[White "Yuan, Ye"]
[Black "Zhao, Shengxin"]
[Result "1/2-1/2"]
[ECO "E08"]
[WhiteElo "2108"]
[BlackElo "2112"]
[Annotator "TA"]
[PlyCount "86"]
[EventDate "2022.09.07"]
[EventType "team-tourn"]
[EventCountry "CHN"]
[SourceTitle "playchess.com"]
[Source "ChessBase"]
[SourceQuality "1"]
[TimeControl "1500+10"]

{[%evp 21,86,0,0,0,0,0,0,0,0,0,0,0,0,5,0,0,0,0,0,0,0,0,0,0,0,0,0,0,0,0,0,0,0,0,0,0,0,0,0,0,0,0,0,0,0,0,0,0,0,0,0,0,0,0,0,0,0,0,0,0,0,0,0,0,0,0,0]} 1. d4 {[%emt 0:00:07]} Nf6 {[%emt 0:00:07]} 2. c4 {[%emt 0:00:11]} e6 {[%emt 0:00:04]} 3. g3 {[%emt 0:01:01]} d5 {[%emt 0:00:52]} 4. Bg2 {[%emt 0:00:17]} Bb4+ {[%emt 0:01:02]} 5. Bd2 {[%emt 0:00:04]} Be7 {[%emt 0:00:07]} 6. Nf3 {[%emt 0:00:11]} O-O {[%emt 0:00:22]} 7. O-O {[%emt 0:00:45]} c6 {[%emt 0:00:39]} 8. Qc2 {[%emt 0:00:14]} Nbd7 {[%emt 0:00:45]} 9. Bf4 {[%emt 0:00:26]} b6 {[%emt 0:00:23]} 10. Rd1 {[%emt 0:00:02]} Bb7 {[%emt 0:00:46]} 11. Nc3 {[%emt 0:01:20]} dxc4 {[%emt 0:00:24] The position is equal.} 12. Nd2 {[%emt 0:00:30] E08: Closed Catalan: Main Line: 7 Qc2.} Nd5 {[%emt 0:00:46]} 13. Nxc4 {[%emt 0:00:08]} Nxf4 {[%emt 0:00:11]} 14. gxf4 {[%emt 0:00:03]} Qc7 {[%emt 0:00:12]} 15. e3 {[%emt 0:00:08]} Rac8 {[%emt 0:00:23]} 16. Rac1 {[%emt 0:00:13]} Rfd8 {[%emt 0:00:40]} 17. a3 {[%emt 0:01:28]} a5 {[%emt 0:00:33]} 18. Qe4 {[%emt 0:05:32]} Ba6 {[%emt 0:01:17][%cal Bb7a6,Ba6c4,Bc4b3][%mdl 32]} 19. Ne5 {[%emt 0:00:42]} Nxe5 {[%emt 0:00:25]} 20. fxe5 {[%emt 0:00:29]} Bc4 {[%emt 0:04:39]} 21. Qg4 {[%emt 0:00:36]} Bb3 {[%emt 0:00:21]} 22. Rd3 {[%emt 0:00:13]} Bc4 {[%emt 0:00:19]} 23. Rd2 {[%emt 0:01:18]} Kh8 {[%emt 0:00:46]} 24. Ne4 {[%emt 0:01:21]} Bd5 {[%emt 0:02:11] [#]} 25. Ng5 $146 {[%emt 0:03:01]} ({Predecessor:} 25. Qf4 f5 26. exf6 Qxf4 27. fxg7+ Kxg7 28. exf4 Bxe4 29. Bxe4 {½-½ (31) Arnold,K (2279)-Tritt,M (2109) ICCF email 2018}) 25... Bxg5 {[%emt 0:00:41]} 26. Qxg5 {[%emt 0:00:05]} Bxg2 {[%emt 0:00:39]} 27. Qxg2 {[%emt 0:00:13]} c5 {[%emt 0:00:13]} 28. Rdc2 {[%emt 0:01:19][%cal Ob2b4]} Qd7 {[%emt 0:00:16]} 29. Qe4 {[%emt 0:04:11][%cal Rd4c5]} cxd4 {[%emt 0:01:25]} 30. Rxc8 {[%emt 0:00:05]} Rxc8 {[%emt 0:00:05]} 31. Rxc8+ {[%emt 0:00:26]} Qxc8 {[%emt 0:00:05]} 32. Qxd4 $11 {[%emt 0:00:14][%mdl 4096] Endgame KQ-KQ} Qc1+ {[%emt 0:00:46]} 33. Kg2 {[%emt 0:00:01][%cal Rd4d8] [#]} Qc6+ {[%emt 0:00:21]} 34. Kg3 {[%emt 0:00:12] Intending Qd8+ and mate.} h5 {[%emt 0:00:18]} 35. Qd8+ {[%emt 0:00:50]} Kh7 {[%emt 0:00:10]} 36. Qg5 {[%emt 0:00:52]} g6 {[%emt 0:00:07]} 37. Qe7 {[%emt 0:00:41]} Kg7 {[%emt 0:01:31]} 38. Qf6+ {[%emt 0:00:24]} Kg8 {[%emt 0:00:18]} 39. Qd8+ {[%emt 0:00:11]} Kg7 {[%emt 0:00:03]} 40. Qf6+ {[%emt 0:00:27]} Kg8 {[%emt 0:00:23]} 41. Qd8+ {[%emt 0:00:11]} Kg7 {[%emt 0:00:12]} 42. Qf6+ {[%emt 0:00:03]} Kg8 {[%emt 0:00:04]} 43. Qd8+ {[%emt 0:00:05]} Kg7 {[%emt 0:00:01] A balanced but interesting game.  Weighted Error Value: White=0.00 (flawless) /Black=0.00 (flawless)} 1/2-1/2

[Event "Chinese League Div-A Rapid 2022"]
[Site "Fuling,Chongqing"]
[Date "2022.09.18"]
[Round "10.16"]
[White "Zhang, Pengxiang"]
[Black "Xu, Yinglun"]
[Result "1-0"]
[ECO "C11"]
[WhiteElo "2564"]
[BlackElo "2549"]
[Annotator "ChessBase"]
[PlyCount "63"]
[EventDate "2022.09.07"]
[EventType "team-tourn"]
[EventCountry "CHN"]
[SourceTitle "playchess.com"]
[Source "ChessBase"]
[SourceQuality "1"]
[TimeControl "1500+10"]

1. e4 {[%emt 0:00:03]} e6 {[%emt 0:00:01]} 2. d4 {[%emt 0:00:02]} d5 {[%emt 0:00:02]} 3. Nc3 {[%emt 0:00:02]} Nf6 {[%emt 0:00:01]} 4. e5 {[%emt 0:00:01]} Nfd7 {[%emt 0:00:01]} 5. f4 {[%emt 0:00:01]} c5 {[%emt 0:00:02]} 6. Nf3 {[%emt 0:00:01]} Nc6 {[%emt 0:00:02]} 7. Be3 {[%emt 0:00:00]} cxd4 {[%emt 0:01:12]} 8. Nxd4 {[%emt 0:00:07]} Qb6 {[%emt 0:01:16]} 9. a3 {[%emt 0:03:55]} Bc5 {[%emt 0:06:43]} 10. Ncb5 {[%emt 0:03:22]} Nxd4 {[%emt 0:07:28]} 11. Bxd4 {[%emt 0:00:30]} Bxd4 {[%emt 0:00:05]} 12. Qxd4 {[%emt 0:00:50]} Qxd4 {[%emt 0:00:02]} 13. Nxd4 {[%emt 0:00:01]} Ke7 {[%emt 0:00:01]} 14. Bd3 {[%emt 0:00:55]} f6 {[%emt 0:00:56]} 15. exf6+ {[%emt 0:00:45]} gxf6 {[%emt 0:00:03]} 16. O-O-O {[%emt 0:00:10]} Nb6 {[%emt 0:03:12]} 17. Rhe1 {[%emt 0:00:11]} Kf7 {[%emt 0:00:02]} 18. Re2 {[%emt 0:03:45]} Bd7 {[%emt 0:03:42]} 19. Rde1 {[%emt 0:00:01]} Rae8 {[%emt 0:01:41]} 20. Bb5 {[%emt 0:00:13]} e5 {[%emt 0:00:02]} 21. fxe5 {[%emt 0:00:13]} fxe5 {[%emt 0:00:14]} 22. Rxe5 {[%emt 0:00:09]} Rxe5 {[%emt 0:00:12]} 23. Rxe5 {[%emt 0:00:01]} Kf6 {[%emt 0:00:07]} 24. Re3 {[%emt 0:03:10]} Nc4 {[%emt 0:00:41]} 25. Rf3+ {[%emt 0:00:53]} Ke5 {[%emt 0:00:01]} 26. c3 {[%emt 0:00:46]} Bg4 {[%emt 0:00:33]} 27. Bxc4 {[%emt 0:00:36]} dxc4 {[%emt 0:00:44]} 28. Rf7 {[%emt 0:00:01]} Bc8 {[%emt 0:00:01]} 29. Rc7 {[%emt 0:00:01]} Kd5 {[%emt 0:00:11]} 30. Ne2 {[%emt 0:00:30]} Re8 {[%emt 0:00:39]} 31. Nf4+ {[%emt 0:00:13]} Kd6 {[%emt 0:00:01]} 32. Rxc4 {[%emt 0:00:04]} 1-0

[Event "Chinese League Div-A Rapid 2022"]
[Site "Fuling,Chongqing"]
[Date "2022.09.18"]
[Round "10.17"]
[White "Nie, Xinyang"]
[Black "Xue, Haowen"]
[Result "0-1"]
[ECO "E48"]
[WhiteElo "2388"]
[BlackElo "2128"]
[Annotator "ChessBase"]
[PlyCount "98"]
[EventDate "2022.09.07"]
[EventType "team-tourn"]
[EventCountry "CHN"]
[SourceTitle "playchess.com"]
[Source "ChessBase"]
[SourceQuality "1"]
[TimeControl "1500+10"]

1. d4 {[%emt 0:00:02]} Nf6 {[%emt 0:00:01]} 2. c4 {[%emt 0:00:01]} e6 {[%emt 0:00:02]} 3. Nc3 {[%emt 0:00:01]} Bb4 {[%emt 0:00:05]} 4. e3 {[%emt 0:00:00]} O-O {[%emt 0:00:06]} 5. Bd3 {[%emt 0:00:01]} d5 {[%emt 0:00:08]} 6. Nge2 {[%emt 0:00:01]} b6 {[%emt 0:01:10]} 7. cxd5 {[%emt 0:00:09]} exd5 {[%emt 0:00:03]} 8. a3 {[%emt 0:00:01]} Bd6 {[%emt 0:00:16]} 9. b4 {[%emt 0:00:00]} Re8 {[%emt 0:00:36]} 10. Bb2 {[%emt 0:00:06]} Bb7 {[%emt 0:00:13]} 11. Ng3 {[%emt 0:00:09]} Nbd7 {[%emt 0:00:53]} 12. Rc1 {[%emt 0:01:06]} a6 {[%emt 0:00:19]} 13. O-O {[%emt 0:00:41]} g6 {[%emt 0:02:03]} 14. b5 {[%emt 0:00:34]} c6 {[%emt 0:02:14]} 15. bxc6 {[%emt 0:01:33]} Bxc6 {[%emt 0:00:01]} 16. Qe2 {[%emt 0:00:07]} Bb7 {[%emt 0:02:57]} 17. a4 {[%emt 0:00:02]} Qe7 {[%emt 0:02:04]} 18. Nb1 {[%emt 0:00:02]} h5 {[%emt 0:00:48]} 19. Rfd1 {[%emt 0:00:52]} h4 {[%emt 0:00:53]} 20. Nf1 {[%emt 0:00:01]} h3 {[%emt 0:00:22]} 21. g3 {[%emt 0:00:38]} Nb8 {[%emt 0:01:23]} 22. Nc3 {[%emt 0:03:35]} Nc6 {[%emt 0:00:21]} 23. f3 {[%emt 0:00:33]} Nb4 {[%emt 0:01:15]} 24. Bb1 {[%emt 0:00:01]} Rac8 {[%emt 0:01:19]} 25. Qf2 {[%emt 0:00:48]} Bc6 {[%emt 0:02:31]} 26. Bc2 {[%emt 0:04:17]} Nxc2 {[%emt 0:00:13]} 27. Qxc2 {[%emt 0:00:17]} b5 {[%emt 0:00:28]} 28. axb5 {[%emt 0:01:10]} axb5 {[%emt 0:00:01]} 29. Qd3 {[%emt 0:01:09]} Qd7 {[%emt 0:01:13]} 30. Nb1 {[%emt 0:00:47]} b4 {[%emt 0:00:18]} 31. Nbd2 {[%emt 0:00:01]} Bb5 {[%emt 0:00:14]} 32. Qb1 {[%emt 0:00:01]} Bf8 {[%emt 0:01:58]} 33. Rxc8 {[%emt 0:00:06]} Qxc8 {[%emt 0:00:11]} 34. Rc1 {[%emt 0:00:49]} Qa6 {[%emt 0:00:11]} 35. Qa1 {[%emt 0:00:14]} Bxf1 {[%emt 0:00:14]} 36. Rxf1 {[%emt 0:00:25]} Qd3 {[%emt 0:00:14]} 37. Rf2 {[%emt 0:00:14]} Rxe3 {[%emt 0:00:16]} 38. Qf1 {[%emt 0:00:25]} Bh6 {[%emt 0:00:20]} 39. Qxd3 {[%emt 0:01:21]} Rxd3 {[%emt 0:00:01]} 40. Nf1 {[%emt 0:00:01]} Ne8 {[%emt 0:00:30]} 41. Re2 {[%emt 0:04:26]} Nd6 {[%emt 0:00:11]} 42. f4 {[%emt 0:00:02]} Nc4 {[%emt 0:00:06]} 43. Bc1 {[%emt 0:00:00]} Bg7 {[%emt 0:00:05]} 44. Re8+ {[%emt 0:00:14]} Kh7 {[%emt 0:00:01]} 45. Kf2 {[%emt 0:00:02]} Rd1 {[%emt 0:00:15]} 46. Be3 {[%emt 0:00:11]} b3 {[%emt 0:00:02]} 47. Ke2 {[%emt 0:00:22]} b2 {[%emt 0:00:05]} 48. Kxd1 {[%emt 0:00:15]} b1=Q+ {[%emt 0:00:03]} 49. Ke2 {[%emt 0:00:01]} Qb5 {[%emt 0:00:09]} 0-1

[Event "Chinese League Div-A Rapid 2022"]
[Site "Fuling,Chongqing"]
[Date "2022.09.18"]
[Round "10.18"]
[White "Peng, Xiongjian"]
[Black "Wen, Yang"]
[Result "1-0"]
[ECO "C65"]
[WhiteElo "2454"]
[BlackElo "2588"]
[Annotator "ChessBase"]
[PlyCount "103"]
[EventDate "2022.09.07"]
[EventType "team-tourn"]
[EventCountry "CHN"]
[SourceTitle "playchess.com"]
[Source "ChessBase"]
[SourceQuality "1"]
[TimeControl "1500+10"]

1. e4 {[%emt 0:00:05]} e5 {[%emt 0:00:02]} 2. Nf3 {[%emt 0:00:01]} Nc6 {[%emt 0:00:02]} 3. Bb5 {[%emt 0:00:02]} Nf6 {[%emt 0:00:04]} 4. d3 {[%emt 0:00:02]} Bc5 {[%emt 0:00:03]} 5. Nbd2 {[%emt 0:00:01]} d6 {[%emt 0:01:40]} 6. c3 {[%emt 0:00:19]} Bd7 {[%emt 0:01:16]} 7. b4 {[%emt 0:00:43]} Bb6 {[%emt 0:00:06]} 8. Nc4 {[%emt 0:00:07]} Ne7 {[%emt 0:00:50]} 9. Bxd7+ {[%emt 0:00:57]} Qxd7 {[%emt 0:00:18]} 10. a4 {[%emt 0:00:41]} c6 {[%emt 0:00:04]} 11. Bg5 {[%emt 0:00:41]} Qe6 {[%emt 0:00:18]} 12. Nxb6 {[%emt 0:01:31]} axb6 {[%emt 0:00:02]} 13. O-O {[%emt 0:00:07]} O-O {[%emt 0:00:33]} 14. Bxf6 {[%emt 0:01:33]} Qxf6 {[%emt 0:00:13]} 15. Qe2 {[%emt 0:00:37]} Ng6 {[%emt 0:01:23]} 16. Qe3 {[%emt 0:00:19]} Qd8 {[%emt 0:00:04]} 17. d4 {[%emt 0:00:38]} Re8 {[%emt 0:01:22]} 18. Rfd1 {[%emt 0:00:20]} exd4 {[%emt 0:00:21]} 19. Qxd4 {[%emt 0:01:35]} Nf4 {[%emt 0:01:14]} 20. Kf1 {[%emt 0:00:38]} Qc8 {[%emt 0:03:01]} 21. h3 {[%emt 0:02:36]} Qe6 {[%emt 0:00:58]} 22. Re1 {[%emt 0:03:57]} Qg6 {[%emt 0:01:58]} 23. g3 {[%emt 0:01:31]} Qh5 {[%emt 0:00:34]} 24. Nh4 {[%emt 0:01:06]} Ng6 {[%emt 0:00:38]} 25. Nxg6 {[%emt 0:01:23]} Qxh3+ {[%emt 0:00:12]} 26. Kg1 {[%emt 0:00:01]} hxg6 {[%emt 0:00:08]} 27. Qxd6 {[%emt 0:01:19]} Re6 {[%emt 0:02:36]} 28. Qd7 {[%emt 0:00:03]} g5 {[%emt 0:00:38]} 29. Rad1 {[%emt 0:00:02]} g4 {[%emt 0:01:36]} 30. Rd6 {[%emt 0:00:04]} Rae8 {[%emt 0:00:02]} 31. e5 {[%emt 0:00:35]} Qh5 {[%emt 0:03:57]} 32. Rxe6 {[%emt 0:01:46]} Rxe6 {[%emt 0:00:01]} 33. Qd8+ {[%emt 0:00:02]} Kh7 {[%emt 0:00:06]} 34. Qd3+ {[%emt 0:00:01]} Kg8 {[%emt 0:00:28]} 35. Qd8+ {[%emt 0:00:07]} Kh7 {[%emt 0:00:01]} 36. Qd3+ {[%emt 0:00:28]} Kg8 {[%emt 0:00:20]} 37. Re4 {[%emt 0:01:00]} Rh6 {[%emt 0:01:06]} 38. Kf1 {[%emt 0:01:27]} Qh1+ {[%emt 0:00:01]} 39. Ke2 {[%emt 0:00:00]} Re6 {[%emt 0:00:26]} 40. Re3 {[%emt 0:01:03]} c5 {[%emt 0:00:57]} 41. Qd8+ {[%emt 0:00:25]} Kh7 {[%emt 0:00:01]} 42. b5 {[%emt 0:00:13]} g6 {[%emt 0:00:41]} 43. Qf8 {[%emt 0:00:18]} Qd5 {[%emt 0:00:35]} 44. Qxf7+ {[%emt 0:00:02]} Kh8 {[%emt 0:00:16]} 45. Qf8+ {[%emt 0:00:04]} Kh7 {[%emt 0:00:01]} 46. Qf7+ {[%emt 0:00:01]} Kh8 {[%emt 0:00:00]} 47. Qf4 {[%emt 0:00:03]} Qa2+ {[%emt 0:01:11]} 48. Kf1 {[%emt 0:00:04]} Qb1+ {[%emt 0:00:20]} 49. Re1 {[%emt 0:00:35]} Qf5 {[%emt 0:00:18]} 50. Qh6+ {[%emt 0:00:10]} Kg8 {[%emt 0:00:01]} 51. Rd1 {[%emt 0:00:00]} Re8 {[%emt 0:00:25]} 52. Rd6 {[%emt 0:00:02]} 1-0

[Event "Chinese League Div-A Rapid 2022"]
[Site "Fuling,Chongqing"]
[Date "2022.09.18"]
[Round "10.19"]
[White "Li, Xueyi"]
[Black "Zhang, Xiaowen"]
[Result "1-0"]
[ECO "A46"]
[WhiteElo "2280"]
[BlackElo "2307"]
[Annotator "ChessBase"]
[PlyCount "85"]
[EventDate "2022.09.07"]
[EventType "team-tourn"]
[EventCountry "CHN"]
[SourceTitle "playchess.com"]
[Source "ChessBase"]
[SourceQuality "1"]
[TimeControl "1500+10"]

1. d4 {[%emt 0:00:01]} d5 {[%emt 0:00:01]} 2. Nf3 {[%emt 0:00:02]} Nf6 {[%emt 0:00:03]} 3. g3 {[%emt 0:00:02]} e6 {[%emt 0:00:03]} 4. Bg2 {[%emt 0:00:01]} b5 {[%emt 0:00:03]} 5. a4 {[%emt 0:00:07]} b4 {[%emt 0:00:01]} 6. O-O {[%emt 0:00:32]} Be7 {[%emt 0:00:15]} 7. c3 {[%emt 0:00:02]} bxc3 {[%emt 0:00:05]} 8. Nxc3 {[%emt 0:00:08]} O-O {[%emt 0:00:19]} 9. Bf4 {[%emt 0:00:33]} a5 {[%emt 0:00:09]} 10. Rc1 {[%emt 0:00:25]} c6 {[%emt 0:00:15]} 11. Ne5 {[%emt 0:00:06]} Ba6 {[%emt 0:01:49]} 12. Re1 {[%emt 0:00:24]} Nfd7 {[%emt 0:00:22]} 13. Nd3 {[%emt 0:00:59]} Ra7 {[%emt 0:00:06]} 14. e4 {[%emt 0:00:29]} Rb7 {[%emt 0:00:02]} 15. Rb1 {[%emt 0:01:28]} Re8 {[%emt 0:00:07]} 16. h4 {[%emt 0:00:17]} h6 {[%emt 0:00:10]} 17. Be3 {[%emt 0:02:53]} Bf6 {[%emt 0:01:17]} 18. e5 {[%emt 0:00:46]} Be7 {[%emt 0:00:02]} 19. Nf4 {[%emt 0:00:02]} c5 {[%emt 0:02:15]} 20. Nh5 {[%emt 0:00:49]} cxd4 {[%emt 0:04:09]} 21. Bxh6 {[%emt 0:04:37]} g6 {[%emt 0:02:16]} 22. Nxd5 {[%emt 0:00:51]} exd5 {[%emt 0:00:41]} 23. Nf4 {[%emt 0:00:45]} Nc6 {[%emt 0:08:35]} 24. e6 {[%emt 0:01:22]} Nf6 {[%emt 0:00:08]} 25. exf7+ {[%emt 0:00:32]} Kxf7 {[%emt 0:00:02]} 26. Bh3 {[%emt 0:00:27]} Bb4 {[%emt 0:01:51]} 27. Qc2 {[%emt 0:01:13]} Rxe1+ {[%emt 0:00:39]} 28. Rxe1 {[%emt 0:00:02]} Bxe1 {[%emt 0:00:13]} 29. Qxg6+ {[%emt 0:02:52]} Ke7 {[%emt 0:00:02]} 30. Bg5 {[%emt 0:00:02]} Qf8 {[%emt 0:01:55]} 31. Bxf6+ {[%emt 0:00:13]} Qxf6 {[%emt 0:00:20]} 32. Nxd5+ {[%emt 0:00:03]} Kd6 {[%emt 0:00:01]} 33. Nxf6 {[%emt 0:00:21]} Rxb2 {[%emt 0:00:37]} 34. Ne8+ {[%emt 0:00:22]} Kc5 {[%emt 0:00:14]} 35. Qd6+ {[%emt 0:00:52]} Kb6 {[%emt 0:00:01]} 36. Bg2 {[%emt 0:00:36]} Bxf2+ {[%emt 0:00:17]} 37. Kh2 {[%emt 0:00:11]} Bb7 {[%emt 0:00:27]} 38. Nf6 {[%emt 0:01:59]} Rb3 {[%emt 0:00:39]} 39. Ne4 {[%emt 0:00:06]} Be3 {[%emt 0:00:11]} 40. Qc5+ {[%emt 0:00:15]} Kc7 {[%emt 0:00:11]} 41. Nd6 {[%emt 0:00:19]} Bf2 {[%emt 0:00:21]} 42. Nb5+ {[%emt 0:00:36]} Kb8 {[%emt 0:00:10]} 43. Qf8+ {[%emt 0:00:03]} 1-0

[Event "Chinese League Div-A Rapid 2022"]
[Site "Fuling,Chongqing"]
[Date "2022.09.18"]
[Round "10.20"]
[White "Song, Yuxin"]
[Black "Zhang, Lanlin"]
[Result "1-0"]
[ECO "B55"]
[WhiteElo "2317"]
[BlackElo "2135"]
[Annotator "ChessBase"]
[PlyCount "93"]
[EventDate "2022.09.07"]
[EventType "team-tourn"]
[EventCountry "CHN"]
[SourceTitle "playchess.com"]
[Source "ChessBase"]
[SourceQuality "1"]
[TimeControl "1500+10"]

1. e4 {[%emt 0:00:01]} c5 {[%emt 0:00:01]} 2. Nf3 {[%emt 0:00:01]} d6 {[%emt 0:00:01]} 3. d4 {[%emt 0:00:03]} cxd4 {[%emt 0:00:02]} 4. Nxd4 {[%emt 0:00:02]} Nf6 {[%emt 0:00:01]} 5. f3 {[%emt 0:00:01]} e5 {[%emt 0:00:11]} 6. Nb3 {[%emt 0:00:02]} h5 {[%emt 0:00:46]} 7. c4 {[%emt 0:00:25]} Be6 {[%emt 0:00:09]} 8. Nc3 {[%emt 0:00:22]} Nbd7 {[%emt 0:00:06]} 9. Be3 {[%emt 0:00:40]} a6 {[%emt 0:00:41]} 10. Qd2 {[%emt 0:00:42]} g6 {[%emt 0:04:24]} 11. Nd5 {[%emt 0:00:41]} Bxd5 {[%emt 0:00:15]} 12. cxd5 {[%emt 0:00:18]} Bg7 {[%emt 0:02:51]} 13. Na5 {[%emt 0:01:20]} Rb8 {[%emt 0:05:42]} 14. Ba7 {[%emt 0:03:20]} Ra8 {[%emt 0:00:03]} 15. Be3 {[%emt 0:02:14]} Rb8 {[%emt 0:00:01]} 16. Rc1 {[%emt 0:00:11]} O-O {[%emt 0:02:28]} 17. b4 {[%emt 0:01:27]} Nb6 {[%emt 0:01:46]} 18. Be2 {[%emt 0:00:23]} Ne8 {[%emt 0:02:18]} 19. O-O {[%emt 0:00:12]} Kh7 {[%emt 0:00:12]} 20. Bd1 {[%emt 0:02:09]} Kg8 {[%emt 0:00:38]} 21. Be2 {[%emt 0:01:48]} Kh7 {[%emt 0:00:32]} 22. Rc2 {[%emt 0:00:14]} Kg8 {[%emt 0:01:39]} 23. Rfc1 {[%emt 0:00:02]} Kh8 {[%emt 0:00:27]} 24. Bd3 {[%emt 0:00:06]} Kh7 {[%emt 0:00:48]} 25. Qf2 {[%emt 0:00:56]} Nd7 {[%emt 0:01:42]} 26. Ba7 {[%emt 0:00:29]} Bh6 {[%emt 0:00:36]} 27. Re1 {[%emt 0:00:42]} Ng7 {[%emt 0:00:42]} 28. Bxb8 {[%emt 0:00:49]} Qxb8 {[%emt 0:00:02]} 29. Nc4 {[%emt 0:00:01]} f5 {[%emt 0:00:39]} 30. a4 {[%emt 0:00:56]} Nf6 {[%emt 0:00:12]} 31. Qb6 {[%emt 0:00:56]} fxe4 {[%emt 0:00:03]} 32. Bxe4 {[%emt 0:00:07]} Nxe4 {[%emt 0:00:02]} 33. fxe4 {[%emt 0:00:31]} Rd8 {[%emt 0:00:27]} 34. Rf1 {[%emt 0:00:33]} Rd7 {[%emt 0:00:06]} 35. g3 {[%emt 0:00:55]} Qc8 {[%emt 0:00:04]} 36. Qf2 {[%emt 0:00:24]} Qe8 {[%emt 0:00:18]} 37. Nb6 {[%emt 0:00:07]} Rd8 {[%emt 0:00:11]} 38. Rc7 {[%emt 0:00:05]} Rb8 {[%emt 0:00:09]} 39. Nd7 {[%emt 0:00:04]} Qd8 {[%emt 0:00:05]} 40. Nf6+ {[%emt 0:01:05]} Kh8 {[%emt 0:00:01]} 41. Rf7 {[%emt 0:00:01]} Rc8 {[%emt 0:00:20]} 42. Nd7 {[%emt 0:00:12]} Kh7 {[%emt 0:00:18]} 43. Nf8+ {[%emt 0:00:04]} Kg8 {[%emt 0:00:08]} 44. Nxg6 {[%emt 0:00:01]} Kh7 {[%emt 0:00:09]} 45. Ne7 {[%emt 0:00:16]} Rc3 {[%emt 0:00:03]} 46. Qf6 {[%emt 0:00:04]} Be3+ {[%emt 0:00:09]} 47. Kh1 {[%emt 0:00:02]} 1-0

[Event "Chinese League Div-A Rapid 2022"]
[Site "Fuling,Chongqing"]
[Date "2022.09.18"]
[Round "10.21"]
[White "Ma, Qun"]
[Black "Li, Chao b"]
[Result "1/2-1/2"]
[ECO "C42"]
[WhiteElo "2666"]
[BlackElo "2679"]
[Annotator "ChessBase"]
[PlyCount "53"]
[EventDate "2022.09.07"]
[EventType "team-tourn"]
[EventCountry "CHN"]
[SourceTitle "playchess.com"]
[Source "ChessBase"]
[SourceQuality "1"]
[TimeControl "1500+10"]

1. e4 {[%emt 0:00:04]} e5 {[%emt 0:00:03]} 2. Nf3 {[%emt 0:00:04]} Nf6 {[%emt 0:00:04]} 3. Nxe5 {[%emt 0:00:10]} d6 {[%emt 0:00:06]} 4. Nf3 {[%emt 0:00:04]} Nxe4 {[%emt 0:00:04]} 5. Nc3 {[%emt 0:00:15]} Nxc3 {[%emt 0:00:02]} 6. dxc3 {[%emt 0:00:02]} Nc6 {[%emt 0:00:04]} 7. Be3 {[%emt 0:00:08]} Be6 {[%emt 0:00:05]} 8. Qd2 {[%emt 0:00:05]} Be7 {[%emt 0:00:06]} 9. O-O-O {[%emt 0:00:27]} Qd7 {[%emt 0:00:06]} 10. Kb1 {[%emt 0:00:12]} a6 {[%emt 0:00:17]} 11. Ng5 {[%emt 0:00:21]} Bxg5 {[%emt 0:00:03]} 12. Bxg5 {[%emt 0:00:03]} f6 {[%emt 0:00:18]} 13. Bf4 {[%emt 0:00:17]} O-O-O {[%emt 0:01:58]} 14. Be2 {[%emt 0:00:16]} h5 {[%emt 0:00:22]} 15. h4 {[%emt 0:00:19]} Rde8 {[%emt 0:00:20]} 16. Rhe1 {[%emt 0:00:08]} Bg4 {[%emt 0:00:48]} 17. f3 {[%emt 0:00:36]} Bf5 {[%emt 0:01:55]} 18. Bf1 {[%emt 0:00:31]} Rxe1 {[%emt 0:00:04]} 19. Rxe1 {[%emt 0:00:02]} Re8 {[%emt 0:00:05]} 20. Rxe8+ {[%emt 0:00:07]} Qxe8 {[%emt 0:00:03]} 21. b3 {[%emt 0:00:09]} Bg6 {[%emt 0:03:16]} 22. Kb2 {[%emt 0:00:09]} Bf5 {[%emt 0:00:04]} 23. Bg3 {[%emt 0:00:06]} Qg6 {[%emt 0:00:18]} 24. Bf4 {[%emt 0:00:07]} Qe8 {[%emt 0:00:09]} 25. Bg3 {[%emt 0:00:04]} Qg6 {[%emt 0:00:04]} 26. Bf4 {[%emt 0:00:03]} Qe8 {[%emt 0:00:02]} 27. Bg3 {[%emt 0:00:03]} 1/2-1/2

[Event "Chinese League Div-A Rapid 2022"]
[Site "Fuling,Chongqing"]
[Date "2022.09.18"]
[Round "10.22"]
[White "Xiang, Zeyu"]
[Black "Li, Haoyu"]
[Result "1/2-1/2"]
[ECO "D14"]
[WhiteElo "2434"]
[BlackElo "2369"]
[Annotator "ChessBase"]
[PlyCount "33"]
[EventDate "2022.09.07"]
[EventType "team-tourn"]
[EventCountry "CHN"]
[SourceTitle "playchess.com"]
[Source "ChessBase"]
[SourceQuality "1"]
[TimeControl "1500+10"]

1. d4 {[%emt 0:00:03]} d5 {[%emt 0:00:07]} 2. c4 {[%emt 0:00:03]} c6 {[%emt 0:00:07]} 3. cxd5 {[%emt 0:00:06]} cxd5 {[%emt 0:00:02]} 4. Nf3 {[%emt 0:00:06]} Nf6 {[%emt 0:00:07]} 5. Nc3 {[%emt 0:00:04]} Nc6 {[%emt 0:00:05]} 6. Bf4 {[%emt 0:00:04]} Bf5 {[%emt 0:00:08]} 7. e3 {[%emt 0:00:03]} e6 {[%emt 0:00:06]} 8. Bd3 {[%emt 0:00:05]} Bxd3 {[%emt 0:00:09]} 9. Qxd3 {[%emt 0:00:05]} Bd6 {[%emt 0:00:05]} 10. Bxd6 {[%emt 0:00:07]} Qxd6 {[%emt 0:00:03]} 11. O-O {[%emt 0:00:06]} O-O {[%emt 0:00:14]} 12. Nb5 {[%emt 0:00:07]} Qe7 {[%emt 0:00:15]} 13. Nc3 {[%emt 0:00:03]} Qd6 {[%emt 0:01:05]} 14. Nb5 {[%emt 0:00:04]} Qe7 {[%emt 0:00:07]} 15. Nc3 {[%emt 0:00:04]} Qd6 {[%emt 0:00:10]} 16. Nb5 {[%emt 0:00:03]} Qe7 {[%emt 0:00:05]} 17. Nc3 {[%emt 0:01:28]} 1/2-1/2